fUSD/lending_fUSD_20240427
["ID","MTS","AMOUNT","RATE_DAILY","PERIOD"]
[323741297,1714227060589,-123.72030624,0.0001178,2]
[323741298,1714227060601,-687.62801484,0.0001178,2]
[323741299,1714227060617,-17.11198516,0.0001178,2]
[323741300,1714227060631,-361.67906129,0.000119,2]
[323741302,1714227620537,199.03,8.365e-05,2]
[323741318,1714228104984,208.63,8.219e-05,2]
[323741350,1714228232413,-15856.74893246,9.974e-05,2]
[323741351,1714228232432,-2971.10519693,9.974e-05,2]
[323741352,1714228232479,-620.40426915,9.974e-05,2]
[323741353,1714228232488,-715.03637195,9.975e-05,2]
[323741354,1714228232637,-367.7873406,9.975e-05,2]
[323741355,1714228232649,-377.95284261,9.975e-05,2]
[323741356,1714228232658,-273.14326045,0.00010075,2]
[323741357,1714228232667,-273.14326045,0.00010075,2]
[323741358,1714228232676,-273.14326045,0.00010075,2]
[323741359,1714228232686,-273.14326045,0.00010075,2]
[323741360,1714228232694,-273.14326045,0.00010075,2]
[323741363,1714228232704,-273.14326045,0.00010075,2]
[323741364,1714228232713,-273.14326045,0.00010075,2]
[323741365,1714228232722,-161.11918863,0.00010076,2]
[323741366,1714228232732,-636.57,0.00010095,2]
[323741367,1714228232741,-201.63,0.00010122,2]
[323741368,1714228232751,-288.87,0.00010176,2]
[323741370,1714228232761,-916.97,0.00010193,2]
[323741372,1714228232771,-187.98,0.00010233,2]
[323741374,1714228232780,-208.63,0.00010481,2]
[323741376,1714228232789,-180.43,0.00010533,2]
[323741378,1714228232798,-488.25,0.0001063,10]
[323741380,1714228232807,-1277.39514561,0.00010857,2]
[323741383,1714228232819,-14349.999995,0.00010857,2]
[323741398,1714228238406,-7623.94505939,0.00010857,2]
[323741400,1714228238415,-1000.0,0.00010857,2]
[323741402,1714228238424,-29816.0433,0.00010858,2]
[323741404,1714228238434,-155.0,0.000109,2]
[323741406,1714228238443,-189.3332851,0.000109,2]
[323741408,1714228238452,-188.16156645,0.000109,2]
[323741410,1714228238461,-363.85220486,0.00010956,2]
[323741412,1714228238470,-500.0,0.00010956,2]
[323741414,1714228238480,-21660.28144469,0.00010957,2]
[323741416,1714228238489,-9635.26168167,0.00010958,2]
[323741418,1714228238499,-500.0,0.00010958,2]
[323741420,1714228238508,-500.0,0.00010958,2]
[323741422,1714228238517,-500.0,0.00010958,2]
[323741423,1714228238526,-266.28,0.00010958,2]
[323741425,1714228238535,-610.77611358,0.00010958,2]
[323741427,1714228238545,-500.0,0.00010958,2]
[323741429,1714228238554,-500.0,0.00010958,2]
[323741431,1714228238563,-500.0,0.00010958,2]
[323741433,1714228238573,-500.0,0.00010958,2]
[323741435,1714228238582,-487.70257628,0.00010958,2]
[323741437,1714228238591,-500.0,0.00010958,2]
[323741438,1714228238601,-654.79,0.00010958,2]
[323741439,1714228238612,-509.99365405,0.00010958,2]
[323741440,1714228238632,-500.0,0.00010958,2]
[323741441,1714228238642,-500.0,0.00010958,2]
[323741442,1714228238651,-500.0,0.00010958,2]
[323741443,1714228238661,-500.0,0.00010958,2]
[323741444,1714228238670,-500.0,0.00010958,2]
[323741445,1714228238680,-500.0,0.00010958,2]
[323741446,1714228238689,-500.0,0.00010958,2]
[323741447,1714228238698,-500.0,0.00010958,2]
[323741448,1714228238707,-500.0,0.00010958,2]
[323741449,1714228238717,-500.0,0.00010958,2]
[323741450,1714228238726,-500.0,0.00010958,2]
[323741451,1714228238735,-500.0,0.00010958,2]
[323741452,1714228238744,-500.0,0.00010958,2]
[323741453,1714228238753,-500.0,0.00010958,2]
[323741454,1714228238762,-500.0,0.00010958,2]
[323741455,1714228238771,-500.0,0.00010958,2]
[323741456,1714228238781,-602.45,0.00010958,2]
[323741457,1714228238790,-535.35,0.00010958,2]
[323741459,1714228238799,-500.0,0.00010958,2]
[323741461,1714228238808,-733.37,0.00010958,2]
[323741462,1714228238818,-500.0,0.00010958,2]
[323741463,1714228238827,-500.0,0.00010958,2]
[323741464,1714228238836,-536.62,0.00010958,2]
[323741465,1714228238845,-500.0,0.00010958,2]
[323741466,1714228238855,-297.70246698,0.00010958,2]
[323741467,1714228238864,-500.0,0.00010958,2]
[323741468,1714228238873,-500.0,0.00010958,2]
[323741469,1714228238882,-500.0,0.00010958,2]
[323741470,1714228238891,-500.0,0.00010958,2]
[323741471,1714228238901,-500.0,0.00010958,2]
[323741472,1714228238913,-500.0,0.00010958,2]
[323741474,1714228238923,-500.0,0.00010958,2]
[323741476,1714228238933,-547.63,0.00010958,2]
[323741477,1714228238943,-500.0,0.00010958,2]
[323741478,1714228238953,-500.0,0.00010958,2]
[323741479,1714228238962,-500.0,0.00010958,2]
[323741480,1714228238971,-500.0,0.00010958,2]
[323741481,1714228238980,-500.0,0.00010958,2]
[323741482,1714228238991,-500.0,0.00010958,2]
[323741483,1714228239000,-500.0,0.00010958,2]
[323741484,1714228239010,-500.0,0.00010958,2]
[323741485,1714228239019,-500.0,0.00010958,2]
[323741486,1714228239028,-1274.14,0.00010958,2]
[323741487,1714228239037,-500.0,0.00010958,2]
[323741488,1714228239047,-500.0,0.00010958,2]
[323741489,1714228239056,-603.58,0.00010958,2]
[323741490,1714228239065,-500.0,0.00010958,2]
[323741491,1714228239075,-500.0,0.00010958,2]
[323741492,1714228239085,-500.0,0.00010958,2]
[323741493,1714228239094,-1072.84,0.00010958,2]
[323741494,1714228239104,-500.0,0.00010958,2]
[323741495,1714228239114,-867.11,0.00010958,2]
[323741496,1714228239124,-500.0,0.00010958,2]
[323741497,1714228239133,-500.0,0.00010958,2]
[323741498,1714228239142,-500.0,0.00010958,2]
[323741499,1714228239151,-500.0,0.00010958,2]
[323741500,1714228239162,-657.43,0.00010958,2]
[323741501,1714228239171,-500.0,0.00010958,2]
[323741502,1714228239180,-1149.76,0.00010958,2]
[323741503,1714228239189,-516.71,0.00010958,2]
[323741505,1714228239198,-500.0,0.00010958,2]
[323741506,1714228239207,-500.0,0.00010958,2]
[323741507,1714228239217,-1093.69,0.00010958,2]
[323741508,1714228239226,-511.06,0.00010958,2]
[323741509,1714228239235,-500.0,0.00010958,2]
[323741510,1714228239244,-500.0,0.00010958,2]
[323741511,1714228239254,-500.0,0.00010958,2]
[323741512,1714228239263,-500.0,0.00010958,2]
[323741513,1714228239273,-654.91,0.00010958,2]
[323741514,1714228239282,-511.77,0.00010958,2]
[323741515,1714228239291,-500.0,0.00010958,2]
[323741516,1714228239300,-544.2,0.00010958,2]
[323741517,1714228239310,-500.0,0.00010958,2]
[323741518,1714228239322,-500.0,0.00010958,2]
[323741519,1714228239332,-564.76,0.00010958,2]
[323741520,1714228239341,-500.0,0.00010958,2]
[323741521,1714228239351,-1461.09,0.00010958,2]
[323741522,1714228239362,-500.0,0.00010958,2]
[323741523,1714228239372,-500.0,0.00010958,2]
[323741524,1714228239382,-822.44,0.00010958,2]
[323741525,1714228239391,-318.18,0.00010958,2]
[323741526,1714228239402,-500.0,0.00010958,2]
[323741527,1714228239412,-638.93,0.00010958,2]
[323741528,1714228239421,-1150.53,0.00010958,2]
[323741529,1714228239431,-500.0,0.00010958,2]
[323741530,1714228239440,-500.0,0.00010958,2]
[323741531,1714228239450,-531.52,0.00010958,2]
[323741532,1714228239459,-583.29,0.00010958,2]
[323741533,1714228239469,-513.34,0.00010958,2]
[323741534,1714228239478,-500.0,0.00010958,2]
[323741535,1714228239488,-588.36,0.00010958,2]
[323741536,1714228239497,-500.0,0.00010958,2]
[323741537,1714228239507,-889.29,0.00010958,2]
[323741538,1714228239516,-500.0,0.00010958,2]
[323741539,1714228239526,-500.0,0.00010958,2]
[323741540,1714228239536,-819.17,0.00010958,2]
[323741541,1714228239545,-500.0,0.00010958,2]
[323741542,1714228239556,-500.0,0.00010958,2]
[323741543,1714228239565,-618.03,0.00010958,2]
[323741544,1714228239574,-500.0,0.00010958,2]
[323741545,1714228239585,-500.0,0.00010958,2]
[323741546,1714228239594,-500.0,0.00010958,2]
[323741547,1714228239605,-500.0,0.00010958,2]
[323741548,1714228239616,-500.0,0.00010958,2]
[323741549,1714228239625,-1459.39,0.00010958,2]
[323741550,1714228239635,-500.0,0.00010958,2]
[323741551,1714228239644,-960.94,0.00010958,2]
[323741552,1714228239654,-500.0,0.00010958,2]
[323741553,1714228239663,-500.0,0.00010958,2]
[323741554,1714228239673,-500.0,0.00010958,2]
[323741555,1714228239683,-1112.96,0.00010958,2]
[323741556,1714228239692,-500.0,0.00010958,2]
[323741557,1714228239702,-500.0,0.00010958,2]
[323741558,1714228239711,-500.0,0.00010958,2]
[323741559,1714228239721,-509.68,0.00010958,2]
[323741560,1714228239731,-656.68,0.00010958,2]
[323741561,1714228239741,-500.0,0.00010958,2]
[323741562,1714228239751,-970.06,0.00010958,2]
[323741563,1714228239760,-500.0,0.00010958,2]
[323741564,1714228239769,-500.0,0.00010958,2]
[323741565,1714228239779,-1539.66,0.00010958,2]
[323741566,1714228239788,-624.15,0.00010958,2]
[323741567,1714228239797,-500.0,0.00010958,2]
[323741568,1714228239807,-2375.46,0.00010958,2]
[323741569,1714228239817,-879.26,0.00010958,2]
[323741570,1714228239827,-500.0,0.00010958,2]
[323741571,1714228239836,-500.0,0.00010958,2]
[323741572,1714228239846,-747.32,0.00010958,2]
[323741573,1714228239859,-500.0,0.00010958,2]
[323741574,1714228239868,-794.73,0.00010958,2]
[323741575,1714228239879,-513.82,0.00010958,2]
[323741576,1714228239889,-500.0,0.00010958,2]
[323741577,1714228239899,-891.03,0.00010958,2]
[323741578,1714228240184,-500.0,0.00010958,2]
[323741579,1714228240195,-928.28,0.00010958,2]
[323741580,1714228240205,-10006.86,0.00010958,2]
[323741581,1714228240215,-500.0,0.00010958,2]
[323741582,1714228240224,-500.0,0.00010958,2]
[323741583,1714228240234,-761.0,0.00010958,2]
[323741584,1714228240244,-949.01,0.00010958,2]
[323741585,1714228240253,-7428.5,0.00010958,2]
[323741586,1714228240262,-1396.56,0.00010958,2]
[323741587,1714228240272,-500.0,0.00010958,2]
[323741588,1714228240281,-500.0,0.00010958,2]
[323741589,1714228240290,-1257.62,0.00010958,2]
[323741590,1714228240300,-3998.98,0.00010958,2]
[323741593,1714228240313,-1362.63,0.00010958,2]
[323741594,1714228240322,-577.7859178,0.00010958,2]
[323741595,1714228240331,-500.0,0.00010958,2]
[323741596,1714228240341,-500.0,0.00010958,2]
[323741597,1714228240352,-2168.23,0.00010958,2]
[323741598,1714228240364,-1136.81,0.00010958,2]
[323741599,1714228240372,-869.95,0.00010958,2]
[323741600,1714228240381,-854.27,0.00010958,2]
[323741601,1714228240390,-511.53,0.00010958,2]
[323741602,1714228240400,-500.0,0.00010958,2]
[323741603,1714228240411,-1974.76,0.00010958,2]
[323741604,1714228240420,-2352.08,0.00010958,2]
[323741605,1714228240430,-500.0,0.00010958,2]
[323741606,1714228240440,-500.0,0.00010958,2]
[323741607,1714228240450,-945.64,0.00010958,2]
[323741608,1714228240459,-709.39,0.00010958,2]
[323741609,1714228240468,-500.95586665,0.00010958,2]
[323741610,1714228240477,-1612.07,0.00010958,2]
[323741611,1714228240487,-500.0,0.00010958,2]
[323741612,1714228240496,-1529.05,0.00010958,2]
[323741613,1714228240505,-1215.84,0.00010958,2]
[323741614,1714228240516,-1057.36,0.00010958,2]
[323741615,1714228240525,-500.0,0.00010958,2]
[323741616,1714228240537,-500.0,0.00010958,2]
[323741617,1714228240547,-574.81,0.00010958,2]
[323741618,1714228240557,-845.55,0.00010958,2]
[323741619,1714228240566,-500.0,0.00010958,2]
[323741620,1714228240575,-1095.22,0.00010958,2]
[323741621,1714228240585,-884.04,0.00010958,2]
[323741622,1714228240595,-1268.73,0.00010958,2]
[323741623,1714228240604,-500.0,0.00010958,2]
[323741624,1714228240617,-500.0,0.00010958,2]
[323741625,1714228240627,-1297.39,0.00010958,2]
[323741626,1714228240637,-500.0,0.00010958,2]
[323741627,1714228240648,-2711.66,0.00010958,2]
[323741628,1714228240657,-1129.36,0.00010958,2]
[323741629,1714228240666,-500.0,0.00010958,2]
[323741630,1714228240676,-3259.39,0.00010958,2]
[323741631,1714228240685,-500.0,0.00010958,2]
[323741632,1714228240694,-1471.22,0.00010958,2]
[323741633,1714228240703,-7231.59,0.00010958,2]
[323741634,1714228240712,-1993.3,0.00010958,2]
[323741635,1714228240722,-1717.3,0.00010958,2]
[323741636,1714228240731,-515.56625461,0.00010958,2]
[323741637,1714228240741,-513.21930992,0.00010958,2]
[323741638,1714228240750,-791.45,0.00010958,2]
[323741639,1714228240760,-500.0,0.00010958,2]
[323741640,1714228240769,-705.02,0.00010958,2]
[323741641,1714228240779,-500.0,0.00010958,2]
[323741642,1714228240789,-557.6,0.00010958,2]
[323741643,1714228240798,-500.0,0.00010958,2]
[323741644,1714228240808,-1019.42,0.00010958,2]
[323741645,1714228240817,-590.14,0.00010958,2]
[323741646,1714228240827,-880.31,0.00010958,2]
[323741647,1714228240838,-536.14,0.00010958,2]
[323741648,1714228240847,-500.0,0.00010958,2]
[323741649,1714228240858,-4800.77,0.00010958,2]
[323741650,1714228240867,-505.42061753,0.00010958,2]
[323741651,1714228240877,-500.0,0.00010958,2]
[323741652,1714228240886,-530.88624549,0.00010958,2]
[323741653,1714228240895,-1651.26,0.00010958,2]
[323741654,1714228240906,-500.0,0.00010958,2]
[323741655,1714228240918,-1328.76,0.00010958,2]
[323741656,1714228240927,-4944.52,0.00010958,2]
[323741657,1714228240936,-1705.03,0.00010958,2]
[323741658,1714228240946,-500.0,0.00010958,2]
[323741659,1714228240956,-500.5470886,0.00010958,2]
[323741660,1714228240966,-2299.22,0.00010958,2]
[323741661,1714228240976,-1933.69,0.00010958,2]
[323741662,1714228240987,-1307.65,0.00010958,2]
[323741663,1714228240996,-779.66,0.00010958,2]
[323741664,1714228241006,-578.31387434,0.00010958,2]
[323741665,1714228241015,-500.69865642,0.00010958,2]
[323741666,1714228241024,-508.25,0.00010958,2]
[323741667,1714228241034,-500.0,0.00010958,2]
[323741668,1714228241043,-4998.82,0.00010958,2]
[323741669,1714228241053,-500.0,0.00010958,2]
[323741670,1714228241062,-3132.0,0.00010958,2]
[323741671,1714228241072,-505.73319453,0.00010958,2]
[323741672,1714228241081,-500.0,0.00010958,2]
[323741673,1714228241091,-760.47,0.00010958,2]
[323741674,1714228241100,-609.8,0.00010958,2]
[323741675,1714228241111,-2355.26,0.00010958,2]
[323741676,1714228241120,-736.37,0.00010958,2]
[323741677,1714228241128,-2035.5,0.00010958,2]
[323741678,1714228241138,-1089.22,0.00010958,2]
[323741679,1714228241147,-500.0,0.00010958,2]
[323741680,1714228241156,-500.0,0.00010958,2]
[323741681,1714228241166,-1693.82,0.00010958,2]
[323741682,1714228241175,-658.83,0.00010958,2]
[323741683,1714228241184,-2422.43,0.00010958,2]
[323741684,1714228241194,-500.0,0.00010958,2]
[323741685,1714228241203,-723.48,0.00010958,2]
[323741686,1714228241212,-1714.6,0.00010958,2]
[323741687,1714228241222,-2296.6,0.00010958,2]
[323741688,1714228241231,-917.32,0.00010958,2]
[323741689,1714228241240,-1581.5,0.00010958,2]
[323741690,1714228241250,-973.5,0.00010958,2]
[323741691,1714228241259,-708.23,0.00010958,2]
[323741692,1714228241269,-1011.16,0.00010958,2]
[323741693,1714228241278,-532.82,0.00010958,2]
[323741694,1714228241287,-500.0,0.00010958,2]
[323741695,1714228241296,-576.96,0.00010958,2]
[323741696,1714228241306,-1117.83,0.00010958,2]
[323741697,1714228241315,-1095.41,0.00010958,2]
[323741698,1714228241324,-500.0,0.00010958,2]
[323741699,1714228241334,-2667.12,0.00010958,2]
[323741700,1714228241343,-2823.71,0.00010958,2]
[323741701,1714228241352,-500.0,0.00010958,2]
[323741702,1714228241363,-500.0,0.00010958,2]
[323741703,1714228241373,-500.0,0.00010958,2]
[323741704,1714228241383,-938.16,0.00010958,2]
[323741705,1714228241392,-500.0,0.00010958,2]
[323741706,1714228241402,-500.0,0.00010958,2]
[323741707,1714228241411,-500.0,0.00010958,2]
[323741708,1714228241420,-500.0,0.00010958,2]
[323741709,1714228241430,-500.0,0.00010958,2]
[323741710,1714228241439,-500.0,0.00010958,2]
[323741711,1714228241448,-500.0,0.00010958,2]
[323741712,1714228241458,-5232.73,0.00010958,2]
[323741713,1714228241468,-1704.96,0.00010958,2]
[323741714,1714228241477,-500.0,0.00010958,2]
[323741715,1714228241486,-500.0,0.00010958,2]
[323741716,1714228241496,-500.0,0.00010958,2]
[323741717,1714228241504,-500.0,0.00010958,2]
[323741718,1714228241514,-1831.92,0.00010958,2]
[323741719,1714228241523,-2027.68,0.00010958,2]
[323741720,1714228241533,-561.11,0.00010958,2]
[323741721,1714228241542,-506.76214283,0.00010958,2]
[323741722,1714228241552,-500.0,0.00010958,2]
[323741723,1714228241561,-500.0,0.00010958,2]
[323741724,1714228241570,-500.0,0.00010958,2]
[323741725,1714228241579,-500.0,0.00010958,2]
[323741726,1714228241589,-500.0,0.00010958,2]
[323741727,1714228241598,-500.0,0.00010958,2]
[323741728,1714228241608,-500.0,0.00010958,2]
[323741729,1714228241617,-500.0,0.00010958,2]
[323741730,1714228241626,-1171.34,0.00010958,2]
[323741731,1714228241636,-797.82,0.00010958,2]
[323741732,1714228241646,-857.6,0.00010958,2]
[323741733,1714228241655,-500.0,0.00010958,2]
[323741734,1714228241665,-409.41596732,0.00010958,2]
[323741735,1714228241675,-500.0,0.00010958,2]
[323741736,1714228241684,-1244.36,0.00010958,2]
[323741737,1714228241693,-500.0,0.00010958,2]
[323741738,1714228241703,-500.0,0.00010958,2]
[323741739,1714228241713,-500.0,0.00010958,2]
[323741740,1714228241722,-500.0,0.00010958,2]
[323741741,1714228241731,-1859.78,0.00010958,2]
[323741742,1714228241741,-500.0,0.00010958,2]
[323741743,1714228241750,-500.0,0.00010958,2]
[323741744,1714228241759,-500.0,0.00010958,2]
[323741745,1714228241769,-500.0,0.00010958,2]
[323741746,1714228241778,-500.0,0.00010958,2]
[323741747,1714228241787,-500.0,0.00010958,2]
[323741748,1714228241797,-835.16,0.00010958,2]
[323741749,1714228241807,-628.39,0.00010958,2]
[323741750,1714228241817,-990.43,0.00010958,2]
[323741751,1714228241826,-169.07177894,0.00010966,2]
[323741752,1714228241836,-40034.4948,0.00010966,2]
[323741753,1714228241846,-749107.79078094,0.00011,2]
[323741754,1714228241855,-400.0,0.00011,2]
[323741755,1714228241866,-2750.0,0.00011,3]
[323741756,1714228241876,-21272.27320161,0.00011066,2]
[323741757,1714228241885,-400.0,0.0001116,2]
[323741758,1714228241894,-500.0,0.0001116,2]
[323741759,1714228241904,-500.0,0.0001116,2]
[323741760,1714228241927,-500.0,0.0001116,2]
[323741761,1714228241937,-500.0,0.0001116,2]
[323741762,1714228241947,-500.0,0.0001116,2]
[323741763,1714228241958,-500.0,0.0001116,2]
[323741764,1714228241969,-500.0,0.0001116,2]
[323741765,1714228241978,-500.0,0.0001116,2]
[323741766,1714228241987,-500.0,0.0001116,2]
[323741767,1714228241998,-500.0,0.0001116,2]
[323741768,1714228242008,-500.0,0.0001116,2]
[323741769,1714228242018,-500.0,0.0001116,2]
[323741770,1714228242028,-500.0,0.0001116,2]
[323741771,1714228242037,-500.0,0.0001116,2]
[323741772,1714228242047,-500.0,0.0001116,2]
[323741773,1714228242057,-500.0,0.0001116,2]
[323741774,1714228242066,-500.0,0.0001116,2]
[323741775,1714228242076,-500.0,0.0001116,2]
[323741776,1714228242086,-399.5,0.0001116,2]
[323741777,1714228242096,-500.0,0.0001116,2]
[323741778,1714228242106,-500.0,0.0001116,2]
[323741779,1714228242118,-500.0,0.0001116,2]
[323741780,1714228242127,-153.29,0.0001116,2]
[323741781,1714228242139,-500.0,0.0001116,2]
[323741782,1714228242149,-500.0,0.0001116,2]
[323741783,1714228242158,-500.0,0.0001116,2]
[323741784,1714228242168,-500.0,0.0001116,2]
[323741785,1714228242178,-557.25,0.0001116,2]
[323741786,1714228242187,-500.0,0.0001116,2]
[323741787,1714228242196,-500.0,0.0001116,2]
[323741788,1714228242206,-500.0,0.0001116,2]
[323741789,1714228242215,-500.0,0.0001116,2]
[323741790,1714228242224,-500.0,0.0001116,2]
[323741791,1714228242234,-500.0,0.0001116,2]
[323741792,1714228242243,-500.0,0.0001116,2]
[323741793,1714228242252,-517.86,0.0001116,2]
[323741794,1714228242262,-500.0,0.0001116,2]
[323741795,1714228242272,-500.0,0.0001116,2]
[323741796,1714228242281,-500.0,0.0001116,2]
[323741797,1714228242291,-500.0,0.0001116,2]
[323741798,1714228242301,-500.0,0.0001116,2]
[323741799,1714228242311,-560.7,0.0001116,2]
[323741800,1714228242322,-500.0,0.0001116,2]
[323741801,1714228242332,-500.0,0.0001116,2]
[323741802,1714228242342,-500.0,0.0001116,2]
[323741803,1714228242352,-500.0,0.0001116,2]
[323741804,1714228242362,-500.0,0.0001116,2]
[323741805,1714228242372,-500.0,0.0001116,2]
[323741806,1714228242382,-500.0,0.0001116,2]
[323741807,1714228242392,-500.0,0.0001116,2]
[323741808,1714228242402,-500.0,0.0001116,2]
[323741809,1714228242411,-500.0,0.0001116,2]
[323741810,1714228242422,-500.0,0.0001116,2]
[323741811,1714228242431,-505.26421273,0.0001116,2]
[323741812,1714228242440,-500.0,0.0001116,2]
[323741813,1714228242450,-500.0,0.0001116,2]
[323741814,1714228242460,-500.0,0.0001116,2]
[323741815,1714228242469,-500.0,0.0001116,2]
[323741816,1714228242478,-500.0,0.0001116,2]
[323741817,1714228242488,-500.0,0.0001116,2]
[323741818,1714228242497,-500.0,0.0001116,2]
[323741819,1714228242507,-453.32398435,0.0001116,2]
[323741820,1714228242516,-500.0,0.0001116,2]
[323741821,1714228242525,-500.0,0.0001116,2]
[323741822,1714228242536,-500.0,0.0001116,2]
[323741823,1714228242545,-500.0,0.0001116,2]
[323741824,1714228242555,-500.0,0.0001116,2]
[323741825,1714228242565,-503.92344031,0.0001116,2]
[323741826,1714228242574,-500.0,0.0001116,2]
[323741827,1714228242584,-500.0,0.0001116,2]
[323741828,1714228242593,-500.0,0.0001116,2]
[323741829,1714228242602,-500.0,0.0001116,2]
[323741830,1714228242612,-500.0,0.0001116,2]
[323741831,1714228242621,-500.0,0.0001116,2]
[323741832,1714228242630,-500.0,0.0001116,2]
[323741833,1714228242639,-500.0,0.0001116,2]
[323741834,1714228242648,-500.0,0.0001116,2]
[323741835,1714228242658,-500.0,0.0001116,2]
[323741836,1714228242667,-500.0,0.0001116,2]
[323741837,1714228242676,-500.0,0.0001116,2]
[323741838,1714228242686,-500.0,0.0001116,2]
[323741839,1714228242695,-500.0,0.0001116,2]
[323741840,1714228242705,-500.0,0.0001116,2]
[323741841,1714228242714,-500.0,0.0001116,2]
[323741842,1714228242724,-518.51,0.0001116,2]
[323741843,1714228242734,-500.0,0.0001116,2]
[323741844,1714228242744,-500.0,0.0001116,2]
[323741845,1714228242754,-500.0,0.0001116,2]
[323741846,1714228242764,-500.0,0.0001116,2]
[323741847,1714228242774,-500.0,0.0001116,2]
[323741848,1714228242783,-500.0,0.0001116,2]
[323741849,1714228242793,-500.0,0.0001116,2]
[323741850,1714228242802,-500.0,0.0001116,2]
[323741851,1714228242811,-500.0,0.0001116,2]
[323741852,1714228242821,-500.0,0.0001116,2]
[323741853,1714228242831,-500.0,0.0001116,2]
[323741854,1714228242841,-500.0,0.0001116,2]
[323741855,1714228242850,-500.0,0.0001116,2]
[323741856,1714228242860,-500.0,0.0001116,2]
[323741857,1714228242870,-500.0,0.0001116,2]
[323741858,1714228242879,-500.0,0.0001116,2]
[323741859,1714228242889,-500.0,0.0001116,2]
[323741860,1714228242898,-500.0,0.0001116,2]
[323741861,1714228242910,-500.0,0.0001116,2]
[323741862,1714228242923,-2015.25,0.0001116,2]
[323741863,1714228242933,-500.0,0.0001116,2]
[323741864,1714228242942,-2114.15,0.0001116,2]
[323741865,1714228242951,-1574.38,0.0001116,2]
[323741866,1714228242962,-1574.38,0.0001116,2]
[323741867,1714228242975,-1574.38,0.0001116,2]
[323741868,1714228242985,-1574.38,0.0001116,2]
[323741869,1714228242995,-1574.38,0.0001116,2]
[323741870,1714228243005,-1574.38,0.0001116,2]
[323741871,1714228243015,-1574.38,0.0001116,2]
[323741872,1714228243026,-1574.38,0.0001116,2]
[323741873,1714228243035,-1152.65766601,0.0001116,2]
[323741874,1714228243062,-421.72233399,0.0001116,2]
[323741875,1714228243071,-1574.38,0.0001116,2]
[323741876,1714228243081,-1574.38,0.0001116,2]
[323741877,1714228243090,-1574.38,0.0001116,2]
[323741878,1714228243099,-1574.38,0.0001116,2]
[323741879,1714228243110,-501.6218288,0.0001116,2]
[323741880,1714228243121,-1574.38,0.0001116,2]
[323741881,1714228243130,-500.0,0.0001116,2]
[323741882,1714228243141,-1574.38,0.0001116,2]
[323741883,1714228243150,-1574.38,0.0001116,2]
[323741884,1714228243159,-1574.38,0.0001116,2]
[323741885,1714228243169,-1574.38,0.0001116,2]
[323741887,1714228243179,-1574.38,0.0001116,2]
[323741889,1714228243188,-1574.38,0.0001116,2]
[323741891,1714228243198,-1574.38,0.0001116,2]
[323741893,1714228243207,-1574.38,0.0001116,2]
[323741895,1714228243216,-1574.38,0.0001116,2]
[323741897,1714228243225,-1572.0,0.0001116,2]
[323741899,1714228243235,-500.0,0.0001116,2]
[323741901,1714228243244,-1986.04,0.0001116,2]